[Event "European School-ch 2019"]
[Site "Mamaia"]
[Date "2019.06.01"]
[Round "2.16"]
[White "Sustov, Savva"]
[Black "Simonyan, Grigori"]
[Result "0-1"]
[ECO "B90"]
[WhiteElo "1693"]
[BlackElo "2019"]
[Annotator "NA"]
[PlyCount "120"]
[EventDate "2019.05.31"]
[EventType "swiss"]
[EventCountry "ROU"]
[SourceTitle "playchess.com"]
[Source "ChessBase"]
[SourceQuality "1"]
[TimeControl "40/5400+30:1800+30"]

1. e4 {[%emt 0:00:00]} c5 {[%emt 0:00:00]} 2. Nf3 {[%emt 0:00:00]} d6 {[%emt 0:00:00]} 3. d4 {[%emt 0:00:00]} cxd4 {[%emt 0:00:00]} 4. Nxd4 {[%emt 0:00:00]} Nf6 {[%emt 0:00:00]} 5. Nc3 {[%emt 0:00:00]} a6 {[%emt 0:00:00]} 6. f3 {[%emt 0:00:00]} e5 {[%emt 0:00:31]} 7. Nb3 {[%emt 0:00:13]} Be6 {[%emt 0:00:14]} 8. Be3 {[%emt 0:00:07]} h5 {[%emt 0:00:28]} 9. Qd2 {[%emt 0:03:11]} Nbd7 {[%emt 0:01:21]} 10. O-O-O {[%emt 0:02:49]} Be7 {[%emt 0:01:02]} 11. Rg1 {[%emt 0:14:18]} b5 {[%emt 0:01:12]} 12. Qf2 {[%emt 0:30:49]} Rc8 {[%emt 0:10:38]} 13. Nd5 {[%emt 0:04:59]} Nxd5 {[%emt 0:03:43]} 14. exd5 {[%emt 0:00:58]} Bf5 {[%emt 0:00:05]} 15. Bd3 {[%emt 0:00:56]} Bxd3 {[%emt 0:00:07]} 16. Rxd3 {[%emt 0:00:04]} a5 {[%emt 0:04:32]} 17. Kb1 {[%emt 0:07:18]} a4 {[%emt 0:00:42]} 18. Nc1 {[%emt 0:00:27]} f5 {[%emt 0:00:17]} 19. Qe2 {[%emt 0:11:12]} O-O {[%emt 0:09:09]} 20. f4 {[%emt 0:06:57]} Qe8 {[%emt 0:00:09]} 21. Re1 {[%emt 0:05:02]} Bf6 {[%emt 0:02:10]} 22. g3 {[%emt 0:02:43]} Rc4 {[%emt 0:07:37]} 23. fxe5 {[%emt 0:04:53]} Qxe5 {[%emt 0:02:16]} 24. c3 {[%emt 0:01:04]} Re4 {[%emt 0:04:21]} 25. Bf4 {[%emt 0:01:38]} Rxe2 {[%emt 0:00:12]} 26. Rxe2 {[%emt 0:00:01]} Qxe2 {[%emt 0:00:55]} 27. Nxe2 {[%emt 0:00:00]} Nc5 {[%emt 0:00:25]} 28. Rd1 {[%emt 0:01:42]} Ne4 {[%emt 0:00:39]} 29. Nd4 {[%emt 0:01:08]} a3 {[%emt 0:03:56]} 30. Nxb5 {[%emt 0:01:29]} Rb8 {[%emt 0:01:23]} 31. c4 {[%emt 0:00:43]} axb2 {[%emt 0:00:30]} 32. Rd3 {[%emt 0:00:35]} Nc5 {[%emt 0:00:56]} 33. Bxd6 {[%emt 0:00:31]} Re8 {[%emt 0:01:42]} 34. Rd1 {[%emt 0:00:25]} Nd3 {[%emt 0:01:45]} 35. Kc2 {[%emt 0:00:38]} Nf2 {[%emt 0:01:18]} 36. Rb1 {[%emt 0:00:23]} Re2+ {[%emt 0:00:29]} 37. Kb3 {[%emt 0:00:11]} Nd3 {[%emt 0:00:33]} 38. Nc3 {[%emt 0:00:37]} Nc1+ {[%emt 0:00:33]} 39. Kb4 {[%emt 0:00:19]} Rc2 {[%emt 0:00:33]} 40. Na4 {[%emt 0:00:00]} Nd3+ {[%emt 0:00:00]} 41. Kb3 {[%emt 0:03:48]} Rc1 {[%emt 0:00:27]} 42. Rxb2 {[%emt 0:01:24]} Nxb2 {[%emt 0:00:24]} 43. Nxb2 {[%emt 0:00:05]} Bxb2 {[%emt 0:00:28]} 44. Kxb2 {[%emt 0:00:03]} Rxc4 {[%emt 0:00:04]} 45. Bf4 {[%emt 0:01:03]} h4 {[%emt 0:16:14]} 46. d6 {[%emt 0:09:52]} h3 {[%emt 0:00:22]} 47. Kb3 {[%emt 0:01:00]} Rd4 {[%emt 0:00:06]} 48. a4 {[%emt 0:02:20]} g5 {[%emt 0:12:27]} 49. Be5 {[%emt 0:07:55]} Rd3+ {[%emt 0:01:46]} 50. Kc4 {[%emt 0:01:20]} Rd2 {[%emt 0:00:47]} 51. a5 {[%emt 0:03:01]} Kf7 {[%emt 0:00:22]} 52. a6 {[%emt 0:02:48]} Rxh2 {[%emt 0:00:36]} 53. Kb3 {[%emt 0:01:19]} Ra2 {[%emt 0:01:49]} 54. g4 {[%emt 0:01:11]} f4 {[%emt 0:00:18]} 55. Kxa2 {[%emt 0:00:57]} h2 {[%emt 0:00:23]} 56. d7 {[%emt 0:00:25]} Ke7 {[%emt 0:00:04]} 57. Bf6+ {[%emt 0:00:11]} Kxd7 {[%emt 0:00:04]} 58. Bxg5 {[%emt 0:00:05]} h1=Q {[%emt 0:00:09]} 59. Bxf4 {[%emt 0:00:06]} Qf1 {[%emt 0:00:30]} 60. a7 {[%emt 0:00:08]} Qa6+ {[%emt 0:00:09]} 0-1

[Event "European School-ch 2019"]
[Site "Mamaia"]
[Date "2019.06.01"]
[Round "2.17"]
[White "Dobre, Radu-Fabian"]
[Black "Aubury, Benjamin"]
[Result "1-0"]
[ECO "B13"]
[WhiteElo "1978"]
[BlackElo "1681"]
[Annotator "NA"]
[PlyCount "81"]
[EventDate "2019.05.31"]
[EventType "swiss"]
[EventCountry "ROU"]
[SourceTitle "playchess.com"]
[Source "ChessBase"]
[SourceQuality "1"]
[TimeControl "40/5400+30:1800+30"]

1. e4 {[%emt 0:00:00]} c6 {[%emt 0:00:00]} 2. d4 {[%emt 0:00:00]} d5 {[%emt 0:00:14]} 3. exd5 {[%emt 0:00:00]} cxd5 {[%emt 0:00:08]} 4. Bd3 {[%emt 0:00:00]} Nc6 {[%emt 0:00:32]} 5. c3 {[%emt 0:00:00]} Nf6 {[%emt 0:00:24]} 6. Bf4 {[%emt 0:00:00]} Bg4 {[%emt 0:00:22]} 7. Qb3 {[%emt 0:00:05]} Qd7 {[%emt 0:00:39]} 8. Nd2 {[%emt 0:00:22]} e6 {[%emt 0:00:35]} 9. Ngf3 {[%emt 0:00:47]} Bd6 {[%emt 0:00:10]} 10. Bxd6 Qxd6 {[%emt 0:00:17]} 11. O-O {[%emt 0:06:06]} O-O {[%emt 0:00:19]} 12. Rae1 {[%emt 0:00:13]} Ne7 {[%emt 0:09:39]} 13. Ne5 {[%emt 0:02:06]} Bf5 {[%emt 0:00:44]} 14. Bxf5 {[%emt 0:00:23]} Nxf5 {[%emt 0:00:17]} 15. f4 {[%emt 0:01:43]} Qb6 {[%emt 0:15:35]} 16. Qc2 {[%emt 0:01:47]} Rac8 {[%emt 0:03:14]} 17. Qb1 {[%emt 0:00:11]} h5 {[%emt 0:06:02]} 18. g3 {[%emt 0:01:03]} Rfd8 {[%emt 0:05:48]} 19. Kg2 {[%emt 0:00:38]} Ng4 {[%emt 0:01:40]} 20. Rf3 {[%emt 0:07:55]} a5 {[%emt 0:19:09]} 21. h3 {[%emt 0:01:20]} Nf6 {[%emt 0:01:11]} 22. Rff1 {[%emt 0:02:28]} Nd6 {[%emt 0:07:32]} 23. g4 {[%emt 0:01:02]} Nfe4 {[%emt 0:01:02]} 24. Ndf3 {[%emt 0:01:20]} h4 {[%emt 0:00:44]} 25. Qc1 {[%emt 0:04:24]} Nb5 {[%emt 0:03:06]} 26. Qa1 {[%emt 0:08:53]} f6 {[%emt 0:08:43]} 27. Nd3 {[%emt 0:00:14]} Qc7 {[%emt 0:00:30]} 28. Nxh4 {[%emt 0:04:15]} g5 {[%emt 0:00:56]} 29. Nf3 {[%emt 0:00:07]} gxf4 {[%emt 0:00:09]} 30. Qc1 {[%emt 0:00:10]} Qc4 {[%emt 0:02:08]} 31. Nxf4 {[%emt 0:02:32]} Kf7 {[%emt 0:00:17]} 32. a3 {[%emt 0:09:43]} Rh8 {[%emt 0:01:18]} 33. Qe3 {[%emt 0:10:51]} Qa2 {[%emt 0:00:49]} 34. Re2 {[%emt 0:00:07]} Rcg8 {[%emt 0:00:41]} 35. Nd3 {[%emt 0:01:48]} Ke7 {[%emt 0:00:39]} 36. Nd2 {[%emt 0:03:11]} Ng5 {[%emt 0:02:16]} 37. Nf4 {[%emt 0:05:23]} Nc7 {[%emt 0:00:57]} 38. Qg3 {[%emt 0:00:01]} Qxb2 {[%emt 0:00:49]} 39. h4 {[%emt 0:01:26]} Nf7 {[%emt 0:01:18]} 40. Rb1 {[%emt 0:00:00]} Qxc3 {[%emt 0:00:00]} 41. Qxc3 {[%emt 0:03:42]} 1-0

[Event "European School-ch 2019"]
[Site "Mamaia"]
[Date "2019.06.01"]
[Round "2.18"]
[White "Ince, Taylan Ruzgar"]
[Black "Nastore, Pavel-Alexandru"]
[Result "0-1"]
[ECO "B51"]
[WhiteElo "1654"]
[BlackElo "1942"]
[Annotator "NA"]
[PlyCount "68"]
[EventDate "2019.05.31"]
[EventType "swiss"]
[EventCountry "ROU"]
[SourceTitle "playchess.com"]
[Source "ChessBase"]
[SourceQuality "1"]
[TimeControl "40/5400+30:1800+30"]

1. e4 {[%emt 0:00:00]} c5 {[%emt 0:00:00]} 2. Nf3 {[%emt 0:00:00]} d6 {[%emt 0:00:00]} 3. Bb5+ {[%emt 0:00:00]} Nd7 {[%emt 0:00:00]} 4. a4 {[%emt 0:00:04]} Ngf6 {[%emt 0:00:00]} 5. Nc3 {[%emt 0:00:22]} a6 {[%emt 0:01:30]} 6. Bc4 {[%emt 0:00:06]} e6 {[%emt 0:00:41]} 7. a5 {[%emt 0:00:48]} Nxe4 {[%emt 0:15:16]} 8. Nxe4 {[%emt 0:04:41]} d5 {[%emt 0:00:07]} 9. Qe2 {[%emt 0:03:09]} dxc4 {[%emt 0:01:33]} 10. Qxc4 {[%emt 0:01:49]} b5 {[%emt 0:06:30]} 11. axb6 {[%emt 0:01:06]} Nxb6 {[%emt 0:00:03]} 12. Qe2 {[%emt 0:01:07]} c4 {[%emt 0:01:43]} 13. Ne5 {[%emt 0:13:21]} Qd5 {[%emt 0:06:54]} 14. d4 {[%emt 0:16:18]} Qxd4 {[%emt 0:18:27]} 15. Ng5 {[%emt 0:00:10]} Bb4+ {[%emt 0:00:09]} 16. Kf1 {[%emt 0:00:45]} c3 {[%emt 0:01:58]} 17. b3 {[%emt 0:01:35]} Bd7 {[%emt 0:00:40]} 18. Nxd7 {[%emt 0:01:30]} Qxd7 {[%emt 0:00:49]} 19. g3 {[%emt 0:04:25]} Qd5 {[%emt 0:09:46]} 20. Nf3 {[%emt 0:00:58]} O-O {[%emt 0:01:23]} 21. Kg2 {[%emt 0:01:00]} a5 {[%emt 0:01:13]} 22. Be3 {[%emt 0:02:04]} Qc6 {[%emt 0:03:06]} 23. Rhe1 {[%emt 0:03:04]} Nd5 {[%emt 0:01:07]} 24. Bd4 {[%emt 0:01:41]} Rfd8 {[%emt 0:03:52]} 25. Kg1 {[%emt 0:02:55]} Ne7 {[%emt 0:06:56]} 26. Ne5 {[%emt 0:05:09]} Qa6 {[%emt 0:02:52]} 27. Be3 {[%emt 0:06:35]} Nf5 {[%emt 0:09:11]} 28. Qxa6 {[%emt 0:00:54]} Rxa6 {[%emt 0:00:03]} 29. Nd3 {[%emt 0:00:07]} Rad6 {[%emt 0:04:09]} 30. Ra4 {[%emt 0:03:19]} Nd4 {[%emt 0:02:22]} 31. Bxd4 {[%emt 0:01:58]} Rxd4 {[%emt 0:00:06]} 32. f3 {[%emt 0:01:14]} g6 {[%emt 0:01:29]} 33. Kf2 {[%emt 0:02:24]} Kg7 {[%emt 0:00:50]} 34. Re4 {[%emt 0:02:05]} Rxe4 {[%emt 0:00:28]} 0-1

[Event "European School-ch 2019"]
[Site "Mamaia"]
[Date "2019.06.01"]
[Round "2.19"]
[White "Warchol, Kamil"]
[Black "Samunenkov, Ihor"]
[Result "0-1"]
[ECO "C55"]
[WhiteElo "1639"]
[BlackElo "1972"]
[Annotator "NA"]
[PlyCount "120"]
[EventDate "2019.05.31"]
[EventType "swiss"]
[EventCountry "ROU"]
[SourceTitle "playchess.com"]
[Source "ChessBase"]
[SourceQuality "1"]
[TimeControl "40/5400+30:1800+30"]

1. e4 {[%emt 0:00:00]} e5 {[%emt 0:00:00]} 2. Nf3 {[%emt 0:00:05]} Nc6 {[%emt 0:00:00]} 3. Bc4 {[%emt 0:00:43]} Nf6 {[%emt 0:00:14]} 4. d3 {[%emt 0:00:45]} h6 {[%emt 0:00:57]} 5. c3 {[%emt 0:02:44]} d6 {[%emt 0:00:13]} 6. Nbd2 {[%emt 0:01:31]} g6 {[%emt 0:00:40]} 7. Nf1 {[%emt 0:02:43]} Bg7 {[%emt 0:02:32]} 8. Ng3 {[%emt 0:01:34]} O-O {[%emt 0:03:15]} 9. O-O {[%emt 0:00:55]} Kh8 {[%emt 0:07:27]} 10. h3 {[%emt 0:02:24]} Na5 {[%emt 0:03:16]} 11. Bb5 {[%emt 0:01:12]} a6 {[%emt 0:00:24]} 12. Ba4 {[%emt 0:00:41]} b5 {[%emt 0:00:39]} 13. Bc2 {[%emt 0:00:22]} Bb7 {[%emt 0:01:57]} 14. Nh2 {[%emt 0:03:15]} d5 {[%emt 0:03:21]} 15. Qe2 {[%emt 0:06:35]} Re8 {[%emt 0:03:46]} 16. h4 {[%emt 0:05:38]} h5 {[%emt 0:07:22]} 17. Bg5 {[%emt 0:02:38]} Qd6 {[%emt 0:08:35]} 18. f4 {[%emt 0:12:41]} exf4 {[%emt 0:02:36]} 19. Rxf4 {[%emt 0:02:14]} Nh7 {[%emt 0:12:23]} 20. Rf3 {[%emt 0:10:16]} Nxg5 {[%emt 0:03:08]} 21. hxg5 {[%emt 0:00:37]} d4 {[%emt 0:00:40]} 22. c4 {[%emt 0:07:36]} bxc4 {[%emt 0:00:59]} 23. dxc4 {[%emt 0:01:21]} Qb6 {[%emt 0:00:44]} 24. Bd3 {[%emt 0:00:47]} Nxc4 {[%emt 0:01:15]} 25. Rxf7 {[%emt 0:05:34]} Ne5 {[%emt 0:03:07]} 26. Rf2 {[%emt 0:01:55]} h4 {[%emt 0:01:19]} 27. Ngf1 {[%emt 0:03:49]} Rf8 {[%emt 0:05:27]} 28. b3 {[%emt 0:05:49]} Rxf2 {[%emt 0:03:27]} 29. Kxf2 {[%emt 0:00:33]} Rf8+ {[%emt 0:03:26]} 30. Kg1 {[%emt 0:01:26]} Nxd3 {[%emt 0:01:00]} 31. Qxd3 {[%emt 0:00:36]} Bxe4 {[%emt 0:00:36]} 32. Qxe4 {[%emt 0:01:16]} d3+ {[%emt 0:00:07]} 33. Kh1 {[%emt 0:00:22]} Bxa1 {[%emt 0:00:11]} 34. Qxd3 {[%emt 0:00:32]} Qe6 {[%emt 0:04:50]} 35. Nf3 {[%emt 0:04:08]} h3 {[%emt 0:01:10]} 36. Ng3 {[%emt 0:01:35]} Qd6 {[%emt 0:04:27]} 37. Qxd6 {[%emt 0:02:18]} cxd6 {[%emt 0:00:13]} 38. Kg1 {[%emt 0:00:43]} hxg2 {[%emt 0:01:06]} 39. Kxg2 {[%emt 0:00:16]} d5 {[%emt 0:00:07]} 40. Ne2 {[%emt 0:00:00]} Rc8 {[%emt 0:00:00]} 41. Ned4 {[%emt 0:02:02]} Re8 {[%emt 0:02:13]} 42. Kf2 {[%emt 0:00:43]} Re4 {[%emt 0:00:18]} 43. Nc2 {[%emt 0:00:25]} Bc3 {[%emt 0:00:17]} 44. Nce1 {[%emt 0:01:18]} Ba5 {[%emt 0:08:39]} 45. Nc2 {[%emt 0:02:47]} Kg7 {[%emt 0:00:44]} 46. a3 {[%emt 0:01:43]} Kf7 {[%emt 0:00:23]} 47. Kf1 {[%emt 0:00:42]} Bc3 {[%emt 0:02:12]} 48. Kf2 {[%emt 0:00:28]} Ke6 {[%emt 0:00:35]} 49. Kf1 {[%emt 0:00:37]} d4 {[%emt 0:01:05]} 50. Nce1 {[%emt 0:01:03]} Kd5 {[%emt 0:00:54]} 51. Kf2 {[%emt 0:00:25]} Bxe1+ {[%emt 0:00:40]} 52. Nxe1 {[%emt 0:00:02]} Re3 {[%emt 0:00:17]} 53. Nc2 {[%emt 0:00:28]} Rxb3 {[%emt 0:00:27]} 54. Ke1 {[%emt 0:00:23]} Kc4 {[%emt 0:00:19]} 55. Kd2 {[%emt 0:00:12]} Rh3 {[%emt 0:00:18]} 56. Ne1 {[%emt 0:00:33]} Rh2+ {[%emt 0:00:10]} 57. Kd1 {[%emt 0:00:29]} Kc3 {[%emt 0:00:06]} 58. a4 {[%emt 0:00:13]} Rh1 {[%emt 0:00:13]} 59. Ke2 {[%emt 0:00:07]} Rxe1+ {[%emt 0:00:07]} 60. Kxe1 {[%emt 0:00:14]} Kc2 {[%emt 0:00:04]} 0-1

[Event "European School-ch 2019"]
[Site "Mamaia"]
[Date "2019.06.01"]
[Round "2.20"]
[White "Cnejev, Vladimir-Alexandru"]
[Black "Durak, Can"]
[Result "0-1"]
[ECO "B30"]
[WhiteElo "1970"]
[BlackElo "1646"]
[Annotator "NA"]
[PlyCount "136"]
[EventDate "2019.05.31"]
[EventType "swiss"]
[EventCountry "ROU"]
[SourceTitle "playchess.com"]
[Source "ChessBase"]
[SourceQuality "1"]
[TimeControl "40/5400+30:1800+30"]

1. e4 {[%emt 0:00:00]} c5 {[%emt 0:00:00]} 2. Nf3 {[%emt 0:00:00]} Nc6 {[%emt 0:00:20]} 3. c3 {[%emt 0:00:00]} Nf6 {[%emt 0:00:27]} 4. e5 {[%emt 0:00:00]} Nd5 {[%emt 0:00:37]} 5. d4 {[%emt 0:00:00]} cxd4 {[%emt 0:00:22]} 6. cxd4 {[%emt 0:00:00]} e6 {[%emt 0:00:42]} 7. a3 {[%emt 0:03:22]} d6 {[%emt 0:00:39]} 8. Bd3 {[%emt 0:00:07]} g6 {[%emt 0:00:36]} 9. O-O {[%emt 0:00:18]} Bg7 {[%emt 0:00:32]} 10. Qe2 {[%emt 0:00:14]} O-O {[%emt 0:01:56]} 11. h4 {[%emt 0:08:59]} Qb6 {[%emt 0:03:25]} 12. Qe4 {[%emt 0:01:06]} f5 {[%emt 0:04:06]} 13. exf6 {[%emt 0:10:48]} Nxf6 {[%emt 0:00:23]} 14. Qf4 {[%emt 0:06:51]} d5 {[%emt 0:04:35]} 15. Nc3 {[%emt 0:45:21]} Nh5 {[%emt 0:01:17]} 16. Qg4 {[%emt 0:05:19]} Nxd4 {[%emt 0:01:58]} 17. Ng5 Nf5 {[%emt 0:01:43]} 18. Na4 {[%emt 0:13:45]} Qd4 {[%emt 0:01:42]} 19. Qxd4 {[%emt 0:00:05]} Nxd4 {[%emt 0:00:08]} 20. Be3 {[%emt 0:00:47]} Nf4 {[%emt 0:02:30]} 21. Bxf4 {[%emt 0:00:57]} Rxf4 {[%emt 0:00:17]} 22. g3 {[%emt 0:00:06]} Nf3+ {[%emt 0:01:10]} 23. Nxf3 {[%emt 0:00:08]} Rxf3 {[%emt 0:02:07]} 24. Rad1 {[%emt 0:00:09]} b6 {[%emt 0:01:09]} 25. Kg2 {[%emt 0:03:24]} Rxd3 {[%emt 0:00:16]} 26. Rxd3 {[%emt 0:00:03]} Ba6 {[%emt 0:00:05]} 27. Rfd1 {[%emt 0:00:38]} Bxd3 {[%emt 0:00:08]} 28. Rxd3 {[%emt 0:00:00]} Rc8 {[%emt 0:00:39]} 29. Nc3 {[%emt 0:00:43]} Bxc3 {[%emt 0:00:25]} 30. bxc3 {[%emt 0:00:09]} Rc4 {[%emt 0:00:07]} 31. Kf3 {[%emt 0:00:19]} Ra4 {[%emt 0:00:15]} 32. Ke3 {[%emt 0:00:18]} Kf7 {[%emt 0:00:11]} 33. Rd2 {[%emt 0:00:38]} Rxa3 {[%emt 0:00:09]} 34. Kd4 {[%emt 0:00:08]} Ra4+ {[%emt 0:00:12]} 35. Ke5 {[%emt 0:00:27]} Ke7 {[%emt 0:00:13]} 36. f3 {[%emt 0:01:30]} b5 {[%emt 0:00:29]} 37. Rb2 {[%emt 0:00:22]} a6 {[%emt 0:00:04]} 38. g4 {[%emt 0:00:21]} h6 {[%emt 0:00:56]} 39. Re2 {[%emt 0:01:10]} Ra3 {[%emt 0:02:31]} 40. Rc2 {[%emt 0:00:00]} Ra4 {[%emt 0:00:00]} 41. Rg2 {[%emt 0:05:55]} Rc4 {[%emt 0:01:55]} 42. Ra2 {[%emt 0:00:22]} Ra4 {[%emt 0:02:35]} 43. Rg2 {[%emt 0:01:10]} Ra1 {[%emt 0:00:48]} 44. Re2 {[%emt 0:02:32]} Rf1 {[%emt 0:00:29]} 45. Kf4 {[%emt 0:08:32]} g5+ {[%emt 0:01:11]} 46. hxg5 {[%emt 0:00:06]} hxg5+ {[%emt 0:00:05]} 47. Ke3 {[%emt 0:01:12]} Rc1 {[%emt 0:01:03]} 48. Kd4 {[%emt 0:01:26]} Rf1 {[%emt 0:00:46]} 49. Ke3 {[%emt 0:00:35]} Ra1 {[%emt 0:00:58]} 50. Rh2 {[%emt 0:01:02]} Ra3 {[%emt 0:00:52]} 51. Kd4 {[%emt 0:00:44]} Kd6 {[%emt 0:00:29]} 52. Rh6 {[%emt 0:00:08]} b4 {[%emt 0:00:49]} 53. c4 {[%emt 0:01:57]} dxc4 {[%emt 0:00:41]} 54. Kxc4 {[%emt 0:00:04]} Rxf3 {[%emt 0:00:10]} 55. Kxb4 {[%emt 0:00:03]} Rf4+ {[%emt 0:00:08]} 56. Ka5 {[%emt 0:00:53]} Rxg4 {[%emt 0:00:09]} 57. Kxa6 {[%emt 0:00:03]} Kd5 {[%emt 0:00:08]} 58. Kb5 {[%emt 0:00:20]} e5 {[%emt 0:00:07]} 59. Rh8 {[%emt 0:00:12]} Rd4 {[%emt 0:00:22]} 60. Rg8 {[%emt 0:00:12]} g4 {[%emt 0:00:07]} 61. Rg6 {[%emt 0:00:47]} Rf4 {[%emt 0:00:33]} 62. Rg5 {[%emt 0:01:34]} Kd4 {[%emt 0:00:11]} 63. Kb4 {[%emt 0:00:43]} Ke3+ {[%emt 0:00:11]} 64. Kc3 {[%emt 0:00:13]} e4 {[%emt 0:00:03]} 65. Kc2 {[%emt 0:04:21]} Kf2 {[%emt 0:00:11]} 66. Kd1 {[%emt 0:05:41]} e3 {[%emt 0:00:09]} 67. Re5 {[%emt 0:03:29]} g3 {[%emt 0:00:06]} 68. Kc2 {[%emt 0:00:41]} g2 {[%emt 0:00:08]} 0-1

[Event "European School-ch 2019"]
[Site "Mamaia"]
[Date "2019.06.01"]
[Round "2.21"]
[White "Grishin, Petr E."]
[Black "Magold, Filip"]
[Result "0-1"]
[ECO "A20"]
[WhiteElo "1566"]
[BlackElo "1906"]
[Annotator "NA"]
[PlyCount "84"]
[EventDate "2019.05.31"]
[EventType "swiss"]
[EventCountry "ROU"]
[SourceTitle "playchess.com"]
[Source "ChessBase"]
[SourceQuality "1"]
[TimeControl "40/5400+30:1800+30"]

1. c4 {[%emt 0:00:00]} e5 {[%emt 0:00:00]} 2. g3 {[%emt 0:00:00]} Nf6 {[%emt 0:00:19]} 3. Bg2 {[%emt 0:00:00]} c6 {[%emt 0:00:12]} 4. Nf3 {[%emt 0:00:04]} Qc7 {[%emt 0:00:40]} 5. O-O {[%emt 0:01:04]} d5 {[%emt 0:04:22]} 6. cxd5 cxd5 {[%emt 0:00:05]} 7. b3 {[%emt 0:04:39]} Bd6 {[%emt 0:01:39]} 8. Bb2 {[%emt 0:01:03]} Nc6 {[%emt 0:03:13]} 9. Nc3 {[%emt 0:02:49]} a6 {[%emt 0:00:08]} 10. d3 {[%emt 0:02:03]} O-O {[%emt 0:01:32]} 11. Rc1 {[%emt 0:00:59]} Qe7 {[%emt 0:01:12]} 12. Na4 {[%emt 0:04:58]} Bf5 {[%emt 0:10:57]} 13. Nd2 {[%emt 0:06:29]} Rad8 {[%emt 0:04:03]} 14. h3 {[%emt 0:05:13]} Rfe8 {[%emt 0:04:10]} 15. g4 {[%emt 0:12:38]} Be6 {[%emt 0:00:10]} 16. Nc3 {[%emt 0:03:02]} h6 {[%emt 0:01:08]} 17. e4 {[%emt 0:05:37]} Ba3 {[%emt 0:04:31]} 18. Bxa3 {[%emt 0:05:56]} Qxa3 {[%emt 0:00:08]} 19. f4 {[%emt 0:01:38]} exf4 {[%emt 0:02:57]} 20. Rxf4 {[%emt 0:00:56]} Ne5 {[%emt 0:02:11]} 21. Ndb1 {[%emt 0:02:57]} Qd6 {[%emt 0:01:18]} 22. d4 {[%emt 0:03:32]} dxe4 {[%emt 0:00:04]} 23. Nxe4 {[%emt 0:01:22]} Nxe4 {[%emt 0:00:07]} 24. Rxe4 {[%emt 0:01:03]} Nc6 {[%emt 0:00:50]} 25. d5 {[%emt 0:02:17]} Qxd5 {[%emt 0:00:30]} 26. Qxd5 {[%emt 0:00:30]} Rxd5 {[%emt 0:00:30]} 27. Rec4 {[%emt 0:00:30]} Rd3 {[%emt 0:00:30]} 28. Bxc6 {[%emt 0:00:30]} bxc6 {[%emt 0:00:30]} 29. Rxc6 {[%emt 0:00:30]} Rxh3 {[%emt 0:00:30]} 30. R6c4 {[%emt 0:03:01]} Rd3 31. Rc6 Rh3 {[%emt 0:00:20]} 32. Re1 {[%emt 0:02:49]} Rd8 {[%emt 0:03:09]} 33. Rxa6 {[%emt 0:03:41]} Rdd3 {[%emt 0:00:28]} 34. Ra4 {[%emt 0:01:46]} Bd5 {[%emt 0:01:10]} 35. Rf4 {[%emt 0:01:58]} Rdg3+ {[%emt 0:00:13]} 36. Kf1 {[%emt 0:00:57]} Rg2 {[%emt 0:01:43]} 37. Rfe4 {[%emt 0:00:51]} Rxa2 {[%emt 0:00:53]} 38. Kg1 {[%emt 0:00:36]} Bxe4 {[%emt 0:00:06]} 39. Rxe4 {[%emt 0:00:06]} Rxb3 {[%emt 0:00:03]} 40. Re1 {[%emt 0:00:10]} Rab2 {[%emt 0:00:04]} 41. Rf1 {[%emt 0:30:16]} Rxb1 {[%emt 0:30:05]} 42. Rxb1 {[%emt 0:00:00]} Rxb1+ {[%emt 0:00:00]} 0-1

[Event "European School-ch 2019"]
[Site "Mamaia"]
[Date "2019.06.01"]
[Round "2.22"]
[White "Gurel, Ediz"]
[Black "Kraiukhin, Leonid"]
[Result "1-0"]
[ECO "B32"]
[WhiteElo "1914"]
[BlackElo "1593"]
[Annotator "NA"]
[PlyCount "103"]
[EventDate "2019.05.31"]
[EventType "swiss"]
[EventCountry "ROU"]
[SourceTitle "playchess.com"]
[Source "ChessBase"]
[SourceQuality "1"]
[TimeControl "40/5400+30:1800+30"]

1. e4 {[%emt 0:00:00]} c5 {[%emt 0:00:00]} 2. Nf3 {[%emt 0:00:07]} Nc6 {[%emt 0:00:00]} 3. d4 {[%emt 0:00:43]} cxd4 {[%emt 0:00:02]} 4. Nxd4 {[%emt 0:00:24]} e5 {[%emt 0:00:47]} 5. Nb5 {[%emt 0:00:25]} d6 {[%emt 0:00:28]} 6. N1c3 {[%emt 0:00:32]} a6 {[%emt 0:00:31]} 7. Na3 {[%emt 0:00:30]} b5 {[%emt 0:00:11]} 8. Nd5 {[%emt 0:00:20]} Nf6 {[%emt 0:01:27]} 9. Bg5 {[%emt 0:03:04]} Be7 {[%emt 0:01:08]} 10. Bxf6 Bxf6 {[%emt 0:00:08]} 11. c4 {[%emt 0:00:54]} b4 {[%emt 0:01:04]} 12. Nc2 {[%emt 0:00:12]} O-O {[%emt 0:06:55]} 13. Be2 {[%emt 0:10:09]} a5 {[%emt 0:10:33]} 14. O-O {[%emt 0:02:14]} Bg5 {[%emt 0:01:27]} 15. Bg4 {[%emt 0:05:05]} Ne7 {[%emt 0:07:37]} 16. Nce3 {[%emt 0:04:58]} Bxe3 {[%emt 0:10:35]} 17. Nxe3 {[%emt 0:00:11]} Be6 {[%emt 0:00:59]} 18. Qd2 {[%emt 0:06:20]} Qc7 {[%emt 0:06:55]} 19. b3 {[%emt 0:02:38]} Rad8 {[%emt 0:01:33]} 20. Rfd1 {[%emt 0:01:32]} Kh8 {[%emt 0:04:34]} 21. Qe2 {[%emt 0:06:01]} Nc6 {[%emt 0:04:20]} 22. Nc2 {[%emt 0:00:46]} Qc8 {[%emt 0:05:14]} 23. Bf3 {[%emt 0:01:51]} f5 {[%emt 0:01:22]} 24. exf5 {[%emt 0:02:41]} Bxf5 {[%emt 0:00:11]} 25. Bxc6 {[%emt 0:00:04]} Qxc6 {[%emt 0:01:08]} 26. Ne3 {[%emt 0:00:08]} Bc8 {[%emt 0:01:54]} 27. Nd5 {[%emt 0:01:44]} Bb7 {[%emt 0:01:39]} 28. Qe3 {[%emt 0:05:54]} Rd7 {[%emt 0:04:04]} 29. Rd2 {[%emt 0:02:14]} Rdf7 {[%emt 0:00:30]} 30. Rad1 {[%emt 0:01:50]} Bc8 {[%emt 0:02:29]} 31. Qb6 {[%emt 0:03:39]} Qxb6 {[%emt 0:08:13]} 32. Nxb6 {[%emt 0:00:07]} Bb7 {[%emt 0:00:11]} 33. Nd5 {[%emt 0:00:34]} h6 {[%emt 0:01:18]} 34. f3 {[%emt 0:00:49]} Kh7 {[%emt 0:01:04]} 35. Ne3 {[%emt 0:01:25]} e4 {[%emt 0:00:32]} 36. fxe4 {[%emt 0:00:04]} Bxe4 {[%emt 0:00:07]} 37. Rxd6 {[%emt 0:00:06]} Rf2 {[%emt 0:02:00]} 38. R6d2 {[%emt 0:00:24]} R2f6 {[%emt 0:01:22]} 39. Rf1 {[%emt 0:01:15]} Rxf1+ {[%emt 0:00:41]} 40. Nxf1 {[%emt 0:00:00]} a4 {[%emt 0:00:00]} 41. Ne3 {[%emt 0:02:15]} axb3 {[%emt 0:01:50]} 42. axb3 {[%emt 0:00:08]} Ra8 {[%emt 0:00:20]} 43. Kf2 {[%emt 0:03:14]} Ra1 {[%emt 0:04:12]} 44. c5 {[%emt 0:03:48]} Rc1 {[%emt 0:02:08]} 45. Rd4 Ba8 {[%emt 0:02:01]} 46. Rc4 {[%emt 0:00:23]} Rxc4 {[%emt 0:00:03]} 47. Nxc4 {[%emt 0:00:07]} Bd5 {[%emt 0:00:04]} 48. Na5 {[%emt 0:00:26]} Kg6 {[%emt 0:00:07]} 49. c6 {[%emt 0:00:19]} Kf6 {[%emt 0:00:09]} 50. c7 {[%emt 0:00:04]} Be6 {[%emt 0:00:02]} 51. Nc4 {[%emt 0:00:33]} Ke7 {[%emt 0:00:10]} 52. Nb6 1-0